Workbook

Sheet Inputs
A2: NHS Pension Scheme (2015 Scheme) | H2: ='Pension cont, income tax, NI'!C10 -> 0.052
A3: Opt-out calculator | E3: ='Pension cont, income tax, NI'!C11 -> 0.065
A4: For the tax year 2024 to 2025 | E4: ='Pension cont, income tax, NI'!C12 -> 0.083
A5: (From 6 April 2024 for the changes to National Insurance rate and contribution structure) | E5: ='Pension cont, income tax, NI'!C16 -> 0
E6: ='Pension cont, income tax, NI'!C18 -> 0
A7: Annual salary | E7: ='Pension cont, income tax, NI'!C19 -> 0
A8: Actual pensionable earnings | D8: 30000 | E8: ='Pension cont, income tax, NI'!C20 -> 0
A10: Pension contribution rate | E10: (If this is left blank, the calculator will look up the contribution rate based on the salary details provided above).
A12: Tax code | E12: (If this is left blank, the calculator will assume a standard tax code (such as 1257L)).
A14: Date of Birth | D14: 1968-04-01
A16: Notes:
A17: - | B17: The calculator only allows for tax codes L, K, BR, D0, D1, NT and 0T.
A18: - | B18: The calculator assumes that the tax code put in will allow for the income-related reduction to the Personal Allowance for earnings over £100,000.
A19: - | B19: The calculator does not allow for people born before 6 April 1948 who are eligible for a Personal Allowance above the basic level.
A20: - | B20: The calculator considers the cost of scheme contributions compared to opting out allowing for income tax and NI contributions.
A21: - | B21: The calculator does not consider any Annual Allowance or Lifetime Allowance tax charges that may be incurred as a result of scheme membership.
B22: Calculator updated March 2024

Sheet Pension cont, income tax, NI (hidden)
A1: Government Actuary's Department
A2: Pension cont, income tax, NI
A3: Interim calculation to derive the pension contributions, income tax and NI contribution
A4: =CELL("filename",A1) -> C:\Users\NIRAT\AppData\Local\Microsoft\Windows\INetCache\Content.Outlook\L5BFJUC5\[Copy of Opt-Out Calculator 2023-24 - March 2024 output update v4 - EC.xlsm]Pension cont, income tax, NI
A6: Contribution rates and bands for year 2024/25
A7: Copied from | B7: https://www.nhsbsa.nhs.uk/member-hub/cost-being-scheme
A8: Lower limit | B8: Upper limit | C8: Cont rate
A10: 0 | B10: 13259 | C10: 0.052
A11: =B10+1 -> 13260 | B11: 26831 | C11: 0.065
A12: =B11+1 -> 26832 | B12: 32691 | C12: 0.083
A13: =B12+1 -> 32692 | B13: 49078 | C13: 0.098
A14: =B13+1 -> 49079 | B14: 62924 | C14: 0.107
A15: 62925 | B15: 999999 | C15: 0.125
A21: Member contribution rate | D21: =IF(Inputs!$D$10="",VLOOKUP(ActPay2016,'Pension cont, income tax, NI'!$A$10:$C$15,3,TRUE),Inputs!$D$10) -> 0.083
A22: Contribution payable | D22: =IF(Inputs!$D$10="",VLOOKUP(ActPay2016,'Pension cont, income tax, NI'!$A$10:$C$15,3,TRUE),Inputs!$D$10)*ActPay2016 -> 2490 | E22: =D22/12 -> 207.5
A24: Actual salary | D24: =ActPay2016 -> 30000
A25: Actual salary net of contribution | D25: =ActPay2016-D22 -> 27510
A27: Employer contribution rate | C27: 0.237 | D27: Copied from | E27: https://www.gov.uk/government/consultations/nhs-pension-scheme-proposed-policy-changes-for-april-2024/outcome/government-response-to-the-nhs-pension-scheme-member-contributions-phase-2-and-miscellaneous-amendments-consultation#reforming-member-contributions-phase-2
A28: Employer contribution | C28: =C27*ActPay2016 -> 7110
A31: Income tax rates and taxable bands for year 2024/25
A32: Copied from: | C32: Annex A: rates and allowances - GOV.UK (www.gov.uk)
A33: Additional rate change: | C33: AUTUMN STATEMENT 2022 (publishing.service.gov.uk)
A34: Tax code | C34: =IF(ISNUMBER(SEARCH("BR",Inputs!D12))=TRUE,Basic,IF(ISNUMBER(SEARCH("D0",Inputs!D12))=TRUE,Higher,IF(ISNUMBER(SEARCH("D1",Inputs!D12))=TRUE,Additional,IF(ISNUMBER(SEARCH("NT",Inputs!D12))=TRUE,0,"Standard")))) -> Standard
A35: Personal allowance | C35: =IF(ISNUMBER(SEARCH("L",Inputs!D12))=TRUE,LEFT(Inputs!D12,SEARCH("L",Inputs!D12)-1)*10,IF(ISNUMBER(SEARCH("k",Inputs!D12))=TRUE,RIGHT(Inputs!D12,LEN(Inputs!D12)-SEARCH("k",Inputs!D12))*-10,IF(ISNUMBER(SEARCH("T",Inputs!D12))=TRUE,LEFT(Inputs!D12,SEARCH("T",Inputs!D12)-1)*10,perallow))) -> 12570 | E35: 12570 | F35: Personal Allowance
A37: Taxable income
A38: - before opting out | C38: =D25-C35 -> 14940
A39: - after opting out | C39: =D24-C35 -> 17430
A42: Rate | B42: Lower limit | C42: Upper limit | D42: Taxable income falls within the band | F42: Tax amount
D43: Before opting out | E43: After opting out | F43: Before opting out | G43: After opting out
A44: 0.2 | B44: 0 | C44: 37700 | D44: =MAX(MIN($C44-$C43,C$38-$C43),0) -> 14940 | E44: =MAX(MIN($C44-$C43,C$39-$C43),0) -> 17430 | F44: =$A44*D44 -> 2988 | G44: =$A44*E44 -> 3486
A45: 0.4 | B45: =C44+1 -> 37701 | C45: 125140 | D45: =MAX(MIN($C45-$C44,C$38-$C44),0) -> 0 | E45: =MAX(MIN($C45-$C44,C$39-$C44),0) -> 0 | F45: =$A45*D45 -> 0 | G45: 0
A46: 0.45 | B46: =C45+1 -> 125141 | C46: 9999999 | D46: =MAX(MIN($C46-$C45,C$38-$C45),0) -> 0 | E46: =MAX(MIN($C46-$C45,C$39-$C45),0) -> 0 | F46: 0 | G46: 0
A48: Standard | F48: =SUM(F43:F46) -> 2988 | G48: =SUM(G43:G46) -> 3486
A49: =Basic -> 0.2 | F49: =Basic*$D$25 -> 5502 | G49: =Basic*$D$24 -> 6000
A50: =Higher -> 0.4 | F50: =Higher*$D$25 -> 11004 | G50: =Higher*$D$24 -> 12000
A51: =Additional -> 0.45 | F51: =Additional*$D$25 -> 12379.5 | G51: =Additional*$D$24 -> 13500
A52: 0 | F52: =A52*$D$25 -> 0 | G52: =A52*$D$24 -> 0
A55: National Insurance contributions - rates and allowance for 2024/25 - from 6 April 2024
A56: Copied from: | C56: Rates and thresholds for employers 2024 to 2025 - GOV.UK (www.gov.uk)
C58: £ per week | D58: £ per year | E58: £ per month
A59: Lower Earnings Limit | C59: 123 | D59: =C59*52 -> 6396
A60: Primary threshold (PT) | C60: 241.73 | D60: =C60*52 -> 12569.96
A61: Upper earnings limit (UEL) | C61: 966.73 | D61: =C61*52 -> 50269.96
A62: Rate between PT and UEL | C62: 0.08
A63: Rate above UEL | C63: 0.02
A65: Earnings between PT and UEL | D65: =IF(ActPay2016<=PT,0,IF(ActPay2016>UEL,UEL-PT,ActPay2016-PT)) -> 17430.04 | E65: =D65/12 -> 1452.503333 | F65: =E65*NI_Cont -> 116.2002667
A66: Earnings above UEL | D66: =MAX(0,ActPay2016-D61) -> 0 | E66: =D66/12 -> 0 | F66: =E66*NI_cont_UEL -> 0
A68: National Insurance contribution | E68: =$E$65*$C$62+$E$66*$C$63 -> 116.2002667
A70: Summary information
A71: Member age last birthday | C71: =IF(AND(DAY(DoB) = DAY(TODAY()),MONTH(DoB) = MONTH(TODAY())),YEAR(TODAY()) - YEAR(DoB),ROUNDDOWN(YEARFRAC(DoB,TODAY()),0)) -> 56
A72: Annuity cost | C72: =INDEX(D81:D140,MATCH(C71,B81:B140)) -> 18.1
A73: Annual pension | C73: =1/54*ActPay2016 -> 555.5555556 | D73: =MROUND(C73,10) -> 560
A74: Hypothetical cost | C74: =Annuity_Cost*C73 -> 10055.55556 | D74: =MROUND(C74,100) -> 10100
A75: Increase in take home | C75: =Results!F35-Results!E35 -> 1992 | D75: =ROUND(C75,0) -> 1992
B77: Hypothetical Annuity Cost factors at 31 March 2024
B79: Age last birthday | C79: NHSPS | D79: NHSPS
C80: (1995 section) | D80: (2008 section) and NHSPS 2015
B81: 16 | C81: 22.3 | D81: 16.5
B82: 17 | C82: 22.4 | D82: 16.6
B83: 18 | C83: 22.5 | D83: 16.7
B84: 19 | C84: 22.6 | D84: 16.7
B85: 20 | C85: 22.7 | D85: 16.7
B86: 21 | C86: 22.7 | D86: 16.8
B87: 22 | C87: 22.8 | D87: 16.8
B88: 23 | C88: 22.8 | D88: 16.9
B89: 24 | C89: 22.9 | D89: 16.9
B90: 25 | C90: 23 | D90: 16.9
B91: 26 | C91: 23 | D91: 17
B92: 27 | C92: 23.1 | D92: 17
B93: 28 | C93: 23.1 | D93: 17
B94: 29 | C94: 23.2 | D94: 17.1
B95: 30 | C95: 23.3 | D95: 17.1
B96: 31 | C96: 23.3 | D96: 17.1
B97: 32 | C97: 23.4 | D97: 17.2
B98: 33 | C98: 23.4 | D98: 17.2
B99: 34 | C99: 23.5 | D99: 17.2
B100: 35 | C100: 23.5 | D100: 17.3
B101: 36 | C101: 23.6 | D101: 17.3
B102: 37 | C102: 23.7 | D102: 17.3
B103: 38 | C103: 23.7 | D103: 17.4
B104: 39 | C104: 23.8 | D104: 17.4
B105: 40 | C105: 23.9 | D105: 17.4
B106: 41 | C106: 23.9 | D106: 17.5
B107: 42 | C107: 24 | D107: 17.5
B108: 43 | C108: 24 | D108: 17.6
B109: 44 | C109: 24.1 | D109: 17.6
B110: 45 | C110: 24.2 | D110: 17.6
B111: 46 | C111: 24.2 | D111: 17.7
B112: 47 | C112: 24.3 | D112: 17.7
B113: 48 | C113: 24.4 | D113: 17.8
B114: 49 | C114: 24.4 | D114: 17.8
B115: 50 | C115: 24.5 | D115: 17.8
B116: 51 | C116: 24.6 | D116: 17.9
B117: 52 | C117: 24.7 | D117: 17.9
B118: 53 | C118: 24.7 | D118: 18
B119: 54 | C119: 24.8 | D119: 18
B120: 55 | C120: 24.9 | D120: 18.1
B121: 56 | C121: 25 | D121: 18.1
B122: 57 | C122: 25.1 | D122: 18.2
B123: 58 | C123: 25.1 | D123: 18.2
B124: 59 | C124: 25.2 | D124: 18.3
B125: 60 | C125: 25.3 | D125: 18.4
B126: 61 | C126: 24.8 | D126: 18.4
B127: 62 | C127: 24.3 | D127: 18.5
B128: 63 | C128: 23.8 | D128: 18.6
B129: 64 | C129: 23.2 | D129: 18.6
B130: 65 | C130: 22.7 | D130: 18.7
B131: 66 | C131: 22.1 | D131: 18.2
B132: 67 | C132: 21.6 | D132: 17.7
B133: 68 | C133: 21 | D133: 17.2
B134: 69 | C134: 20.5 | D134: 16.7
B135: 70 | C135: 19.9 | D135: 16.2
B136: 71 | C136: 19.3 | D136: 15.7
B137: 72 | C137: 18.8 | D137: 15.2
B138: 73 | C138: 18.2 | D138: 14.7
B139: 74 | C139: 17.6 | D139: 14.2
B140: 75 | C140: 17.1 | D140: 13.7

Sheet Results
A1: NHS Pension Scheme (2015 Scheme)
A2: Opt-out calculator
A3: For the tax year 2024 to 2025
A4: (From 6 April 2024 for the changes to National Insurance rate and contribution structure)
A6: Benefits you will be giving up by opting out of the 2015 NHS Pension Scheme
A7: - | B7: ="Based on your current pensionable earnings, if you opt out of the Scheme, you would give up an annual pension accrual of around £"&TEXT('Pension cont, income tax, NI'!D73,"#,###")&" per year for life after retirement." -> Based on your current pensionable earnings, if you opt out of the Scheme, you would give up an annual pension accrual of around £560 per year for life after retirement.
A9: - | B9: ="To help illustrate the value of the NHS pension you would be giving up, a hypothetical comparison to buy similar benefits on the “open market” might cost around £"&TEXT('Pension cont, income tax, NI'!D74,"#,###")&" for each year you give up accruing benefits in the NHS Pension Scheme." -> To help illustrate the value of the NHS pension you would be giving up, a hypothetical comparison to buy similar benefits on the “open market” might cost around £10,100 for each year you give up accruing benefits in the NHS Pension Scheme.
A11: - | B11: An annual pension payable for life after retirement
A12: - | B12: Tax-free cash lump sum on retirement for those who have 1995 Section membership of NHS Pension Scheme
B13: (optional for all other members of the 2015 NHS Pension Scheme)
A14: - | B14: Death in service life assurance lump sum to nominated people or an organisation
A15: - | B15: Pension benefits payable to dependents including children
A16: - | B16: Ill-health retirement benefits
A17: - | B17: Tax relief on pension contributions
A19: More information about the benefits that the Scheme provides can be found in the NHS Pension Scheme Guide available on the website at: https://www.nhsbsa.nhs.uk/nhs-pensions or speak to your employer.
A22: Impact on take home pay
B23: Monthly Payments | C23: £ | D23: Deductions | E23: As a member of the 2015 NHS Pension Scheme | F23: After opting out
B24: Monthly salary | C24: =Inputs!D8/12 -> 2500 | D24: Tax | E24: =VLOOKUP('Pension cont, income tax, NI'!C34,'Pension cont, income tax, NI'!$A$48:$G$52,6,FALSE)/12 -> 249 | F24: =VLOOKUP('Pension cont, income tax, NI'!C34,'Pension cont, income tax, NI'!$A$48:$G$52,7,FALSE)/12 -> 290.5
D25: N.I. Contribution | E25: ='Pension cont, income tax, NI'!E68 -> 116.2002667 | F25: ='Pension cont, income tax, NI'!E68 -> 116.2002667
D26: Pension contribution | E26: ='Pension cont, income tax, NI'!D22/12 -> 207.5 | F26: 0
B28: Total payments | C28: =SUM(C24:C27) -> 2500 | D28: Total deductions | E28: =SUM(E24:E27) -> 572.7002667 | F28: =SUM(F24:F27) -> 406.7002667
D29: Net pay | E29: =$C28-E28 -> 1927.299733 | F29: =$C28-F28 -> 2093.299733
A32: Difference in net pay per month | F32: =F29-E29 -> 166
D35: Net annual pay | E35: =E29*12 -> 23127.5968 | F35: =F29*12 -> 25119.5968
A38: Notes:
A39: - | B39: The calculator above is for illustrative purposes only.
A40: - | B40: The Net annnual pay is calculated as 12 times the net monthly pay. It is therefore based on the lower National Insurance rate effective from 6 April 2024.
A41: - | B41: The calculator above is based on the following inputs:
B42: - Actual pensionable earnings | E42: =ActPay2016 -> 30000
B43: - Pension contribution rate | E43: =IF(ISBLANK(Inputs!D10),"Not completed - calculation uses "&TEXT('Pension cont, income tax, NI'!D21,"0.0%"),Inputs!D10) -> Not completed - calculation uses 8.3%
B44: - Tax code | E44: =IF(ISBLANK(Inputs!D12),"Not completed",Inputs!D12) -> Not completed
A45: - | B45: The illustrative value of the benefits is for general comparison purposes only and it is not possible to take this value from the pension scheme. The figures are based on market conditions at 29 December 2023 and costs could vary significantly at different dates.
B48: =Inputs!B22 -> Calculator updated March 2024
